Workbook

Sheet анализ
A1: Информация по учету и перечислению поступлений
A2: в бюджеты бюджетной системы Российской Федерации на территории Курганской области
A3: с казначейского счета для осуществления и отражения операций по учету и распределению поступлений
A4: на 1 апреля 2023 года
A5: Показатели | B5: на 1 апреля 2023 года | D5: на 1 апреля 2022 года | F5: Изменение
B6: Сумма, млн.руб. | C6: Уд. вес , % | D6: Сумма, млн. руб. | E6: Уд. вес , % | F6: Абсолютное (+,-), млн. руб. | G6: Относи-тельное, %
A7: 1 | B7: 2 | C7: 3 | D7: 4 | E7: 5 | F7: 6 | G7: 7
A8: Поступило платежей на казначейский счет для осуществления и отражения операций по учету и распределению поступлений | B8: 19276 | C8: 1 | D8: 32798.3 | E8: 1 | F8: =B8-D8 -> -13522.3 | G8: =F8/D8 -> -0.4122866124
A9: Из них:
A10: Возвращено платежей плательщикам и участникам системы казначейских платежей | B10: 768.2 | C10: =B10/B$8 -> 0.03985266653 | D10: 936.9 | E10: =D10/D$8 -> 0.02856550492 | F10: =B10-D10 -> -168.7 | G10: =F10/D10 -> -0.1800619063
A11: Перечислено в бюджеты, всего: | B11: 18474 | C11: =B11/B$8 -> 0.9583938576 | D11: 31522.4 | E11: =D11/D$8 -> 0.9610985935 | F11: =B11-D11 -> -13048.4 | G11: =F11/D11 -> -0.4139405629
A12: в том числе:
A13: Федеральный бюджет | B13: 721.9 | C13: =B13/B$8 -> 0.03745071592 | D13: 4138.4 | E13: =D13/D$8 -> 0.1261772714 | F13: =B13-D13 -> -3416.5 | G13: =F13/D13 -> -0.8255606031
A14: Областной бюджет | B14: 6609.1 | C14: 0.344 | D14: 10560.8 | E14: =D14/D$8 -> 0.3219922984 | F14: =B14-D14 -> -3951.7 | G14: =F14/D14 -> -0.3741856678
A15: Бюджеты муниципальных образований | B15: 5015.5 | C15: =B15/B$8 -> 0.2601940237 | D15: 5685.4 | E15: =D15/D$8 -> 0.1733443502 | F15: =B15-D15 -> -669.9 | G15: =F15/D15 -> -0.1178281212
A16: Пенсионный фонд | D16: 3906 | E16: =D16/D$8 -> 0.1190915383
A17: Фонд социального страхования | D17: 574.7 | E17: =D17/D$8 -> 0.01752224963
A18: Фонд пенсионного и социального страхования Российской Федерации | B18: 182.9 | C18: =B18/B8 -> 0.009488483088
A19: Федеральный фонд обязательного медицинского страхования | B19: 1587.8 | C19: =B19/B$8 -> 0.08237186138 | D19: 2450.9 | E19: =D19/D$8 -> 0.07472643399 | F19: =B19-D19 -> -863.1 | G19: =F19/D19 -> -0.3521563507
A20: Территориальный фонд обязательного медицинского страхования | B20: 4356.8 | C20: =B20/B$8 -> 0.2260219963 | D20: 4206.2 | E20: =D20/D$8 -> 0.1282444517 | F20: =B20-D20 -> 150.6 | G20: =F20/D20 -> 0.03580428891
A21: Остаток на счете | B21: 33.8 | C21: =B21/B$8 -> 0.001753475825 | D21: 339 | E21: =D21/D$8 -> 0.01033590156 | F21: =B21-D21 -> -305.2 | G21: =F21/D21 -> -0.9002949853
A25: Заместитель начальника отдела доходов | F25: Е.А. Бынзер
